fUST/lending_fUST_20250313
["ID","MTS","AMOUNT","RATE_DAILY","PERIOD"]
[356015044,1741797043206,-500.0,0.00022191,2]
[356015045,1741797043215,-929.42,0.00022191,2]
[356015046,1741797043225,-794.31,0.00022191,2]
[356015047,1741797043234,-500.0,0.00022191,2]
[356015048,1741797043247,-1102.35,0.00022191,2]
[356015049,1741797043256,-983.93,0.00022191,2]
[356015050,1741797043265,-500.0,0.00022191,2]
[356015052,1741797043274,-500.0,0.00022191,2]
[356015053,1741797043285,-500.0,0.00022191,2]
[356015054,1741797043294,-1047.8,0.00022191,2]
[356015055,1741797043303,-500.0,0.00022191,2]
[356015056,1741797043312,-500.0,0.00022191,2]
[356015057,1741797043323,-22011.53,0.00022191,2]
[356015058,1741797043332,-500.0,0.00022191,2]
[356015059,1741797043341,-500.0,0.00022191,2]
[356015060,1741797043350,-612.15,0.00022191,2]
[356015061,1741797043360,-706.22,0.00022191,2]
[356015062,1741797043369,-952.5,0.00022191,2]
[356015063,1741797043378,-740.43,0.00022191,2]
[356015064,1741797043387,-500.0,0.00022191,2]
[356015065,1741797043396,-3126.39,0.00022191,2]
[356015066,1741797043405,-500.0,0.00022191,2]
[356015067,1741797043414,-500.0,0.00022191,2]
[356015068,1741797043423,-10336.51,0.00022191,2]
[356015069,1741797043432,-1633.39,0.00022191,2]
[356015070,1741797043441,-500.0,0.00022191,2]
[356015071,1741797043450,-939.48,0.00022191,2]
[356015072,1741797043459,-500.0,0.00022191,2]
[356015073,1741797043468,-500.0,0.00022191,2]
[356015074,1741797043477,-500.0,0.00022191,2]
[356015075,1741797043486,-500.0,0.00022191,2]
[356015076,1741797043495,-500.0,0.00022191,2]
[356015077,1741797043505,-822.52,0.00022191,2]
[356015078,1741797043514,-1016.88,0.00022191,2]
[356015079,1741797043523,-1045.83,0.00022191,2]
[356015080,1741797043532,-500.0,0.00022191,2]
[356015081,1741797043541,-500.0,0.00022191,2]
[356015082,1741797043551,-627.07,0.00022191,2]
[356015083,1741797043560,-1934.62,0.00022191,2]
[356015084,1741797043568,-620.49396331,0.00022191,2]
[356015085,1741797043578,-500.0,0.00022191,2]
[356015086,1741797043587,-500.0,0.00022191,2]
[356015087,1741797043596,-1097.52,0.00022191,2]
[356015088,1741797043606,-607.7,0.00022191,2]
[356015089,1741797043615,-875.35,0.00022191,2]
[356015090,1741797043624,-500.0,0.00022191,2]
[356015091,1741797043634,-1514.79,0.00022191,2]
[356015092,1741797043644,-2567.32,0.00022191,2]
[356015093,1741797043655,-1000.0,0.00022191,7]
[356015094,1741797043664,-500.0,0.00022191,2]
[356015095,1741797043673,-500.0,0.00022191,2]
[356015096,1741797043683,-787.4,0.00022191,2]
[356015097,1741797043692,-678.62,0.00022191,2]
[356015098,1741797043701,-201.92244519,0.00022191,2]
[356015099,1741797043720,-555.46755481,0.00022191,2]
[356015100,1741797043730,-268.07744219,0.00022191,2]
[356015101,1741797043937,-1335.30255781,0.00022191,2]
[356015102,1741797043947,-19.26551891,0.00022191,2]
[356015103,1741797044648,-150.0,0.00021712,2]
[356015104,1741797044659,-436.5861468,0.00021915,2]
[356015105,1741797044669,-1899.47448109,0.00022191,2]
[356015106,1741797044679,-684.08,0.00022191,2]
[356015107,1741797044689,-520.4,0.00022191,2]
[356015108,1741797044698,-1368.91,0.00022191,2]
[356015109,1741797044708,-954.38,0.00022191,2]
[356015110,1741797044718,-500.0,0.00022191,2]
[356015111,1741797044728,-500.0,0.00022191,2]
[356015112,1741797044737,-500.0,0.00022191,2]
[356015113,1741797044747,-253.54067869,0.00022191,2]
[356015114,1741797045016,-1000.0,0.00022,22]
[356015115,1741797045026,-246.45932131,0.00022191,2]
[356015116,1741797045035,-876.38,0.00022191,2]
[356015117,1741797045045,-100.27133384,0.00022191,2]
[356015147,1741797686926,12522.0,0.00016,2]
[356015150,1741797726058,168.0,0.00016,2]
[356015151,1741797741800,150.0,0.00016,120]
[356015154,1741797857593,164.38247618,0.00016,2]
[356015249,1741798232121,-150.0,0.000169,2]
[356015251,1741798232131,-1544.37416135,0.000179,2]
[356015294,1741798237925,-102.35583865,0.000179,2]
[356015296,1741798237935,-371.0,0.000179,7]
[356015298,1741798237945,-371.0,0.000194,8]
[356015300,1741798237956,-371.0,0.000209,9]
[356015302,1741798237968,-739.24111274,0.00020971,2]
[356015304,1741798237981,-4401.0,0.00021,3]
[356015307,1741798237991,-739.24111274,0.00021237,2]
[356015309,1741798238001,-739.24111274,0.00021375,2]
[356015311,1741798238011,-179.58695001,0.00021475,2]
[356015313,1741798238021,-150.0,0.00021557,7]
[356015314,1741798238030,-150.0,0.00021557,7]
[356015315,1741798238040,-739.24111274,0.00021645,2]
[356015316,1741798238050,-195.78581892,0.00021817,2]
[356015317,1741798238060,-1922.4807581,0.00021817,2]
[356015318,1741798238069,-1438.0083,0.000219,7]
[356015319,1741798238079,-3178.942,0.000219,2]
[356015321,1741798238088,-1055.67620314,0.000219,3]
[356015323,1741798238098,-5609.13396691,0.00021916,2]
[356015324,1741798238108,-500.0,0.00021916,2]
[356015325,1741798238118,-155.61030276,0.00021916,2]
[356015326,1741798238128,-195.43717994,0.00021916,2]
[356015327,1741798238137,-500.0,0.00021916,2]
[356015328,1741798238147,-500.0,0.00021916,2]
[356015329,1741798238156,-500.0,0.00021916,2]
[356015330,1741798238166,-276.19233645,0.00021916,2]
[356015331,1741798238175,-460.10139363,0.00021916,2]
[356015332,1741798238185,-500.0,0.00021917,2]
[356015333,1741798238194,-818.07,0.00021917,2]
[356015334,1741798238204,-500.0,0.00021917,2]
[356015335,1741798238215,-500.0,0.00021917,2]
[356015336,1741798238224,-586.0,0.00021917,2]
[356015337,1741798238234,-246.05866556,0.00021917,2]
[356015338,1741798238243,-500.0,0.00021917,2]
[356015339,1741798238253,-500.0,0.00021917,2]
[356015340,1741798238263,-500.0,0.00021917,5]
[356015341,1741798238272,-500.0,0.00021917,2]
[356015342,1741798238281,-500.0,0.00021917,2]
[356015343,1741798238291,-500.0,0.00021917,2]
[356015344,1741798238300,-500.0,0.00021917,2]
[356015345,1741798238309,-500.0,0.00021917,2]
[356015346,1741798238361,-500.0,0.00021917,2]
[356015347,1741798238370,-530.44825027,0.00021917,2]
[356015348,1741798238380,-500.0,0.00021917,2]
[356015349,1741798238390,-500.0,0.00021917,2]
[356015350,1741798238399,-500.0,0.00021917,2]
[356015351,1741798238409,-500.0,0.00021917,2]
[356015352,1741798238418,-500.0,0.00021917,2]
[356015353,1741798238427,-500.0,0.00021917,2]
[356015354,1741798238437,-500.0,0.00021917,2]
[356015355,1741798238446,-500.0,0.00021917,2]
[356015356,1741798238455,-500.0,0.00021917,2]
[356015357,1741798238466,-500.0,0.00021917,2]
[356015358,1741798238475,-500.0,0.00021917,2]
[356015359,1741798238485,-500.0,0.00021917,2]
[356015360,1741798238494,-500.0,0.00021917,2]
[356015361,1741798238503,-646.75564394,0.00021917,2]
[356015362,1741798238513,-500.0,0.00021917,2]
[356015363,1741798238522,-500.0,0.00021917,2]
[356015364,1741798238531,-500.0,0.00021917,2]
[356015365,1741798238540,-500.0,0.00021917,2]
[356015366,1741798238551,-500.0,0.00021917,2]
[356015367,1741798238560,-500.0,0.00021917,2]
[356015368,1741798238569,-500.0,0.00021917,2]
[356015369,1741798238579,-800.79,0.00021917,2]
[356015370,1741798238588,-796.09,0.00021917,2]
[356015371,1741798238597,-500.0,0.00021917,2]
[356015372,1741798238607,-500.0,0.00021917,2]
[356015373,1741798238616,-711.04,0.00021917,2]
[356015374,1741798238625,-500.0,0.00021917,2]
[356015375,1741798238635,-500.0,0.00021917,2]
[356015376,1741798238644,-1145.19,0.00021917,2]
[356015377,1741798238656,-500.0,0.00021917,2]
[356015378,1741798238666,-500.0,0.00021917,2]
[356015379,1741798238676,-717.09,0.00021917,2]
[356015380,1741798238687,-500.0,0.00021917,2]
[356015381,1741798238696,-500.0,0.00021917,2]
[356015382,1741798238717,-500.0,0.00021917,2]
[356015383,1741798238730,-500.0,0.00021917,2]
[356015384,1741798238739,-500.0,0.00021917,2]
[356015385,1741798238749,-500.0,0.00021917,2]
[356015386,1741798238758,-500.0,0.00021917,2]
[356015387,1741798238768,-500.0,0.00021917,2]
[356015388,1741798238777,-500.0,0.00021917,2]
[356015389,1741798238788,-500.0,0.00021917,2]
[356015390,1741798238797,-657.77,0.00021917,2]
[356015391,1741798238808,-500.0,0.00021917,2]
[356015392,1741798238817,-1358.58,0.00021917,2]
[356015393,1741798238827,-500.0,0.00021917,2]
[356015394,1741798238837,-500.0,0.00021917,2]
[356015395,1741798238847,-500.0,0.00021917,2]
[356015396,1741798238856,-500.0,0.00021917,2]
[356015397,1741798238866,-500.0,0.00021917,2]
[356015398,1741798238875,-500.0,0.00021917,2]
[356015399,1741798238885,-500.0,0.00021917,2]
[356015400,1741798238895,-500.0,0.00021917,2]
[356015401,1741798238904,-500.0,0.00021917,2]
[356015402,1741798238914,-500.0,0.00021917,2]
[356015403,1741798238923,-500.0,0.00021917,2]
[356015404,1741798238932,-500.0,0.00021917,2]
[356015405,1741798238943,-500.0,0.00021917,2]
[356015406,1741798238952,-500.0,0.00021917,2]
[356015407,1741798238962,-500.0,0.00021917,2]
[356015408,1741798238973,-504.71,0.00021917,2]
[356015409,1741798238983,-739.73,0.00021917,2]
[356015410,1741798238992,-1415.74,0.00021917,2]
[356015411,1741798239002,-495.89108934,0.00021917,2]
[356015412,1741798239012,-837.97,0.00021917,2]
[356015413,1741798239022,-500.0,0.00021917,2]
[356015414,1741798239032,-746.64,0.00021917,2]
[356015415,1741798239043,-1720.3,0.00021917,2]
[356015416,1741798239052,-500.0,0.00021917,2]
[356015417,1741798239063,-500.0,0.00021917,2]
[356015418,1741798239073,-500.0,0.00021917,2]
[356015419,1741798239082,-500.0,0.00021917,2]
[356015420,1741798239092,-1327.89,0.00021917,2]
[356015421,1741798239101,-500.0,0.00021917,2]
[356015422,1741798239110,-2147.19,0.00021917,2]
[356015423,1741798239120,-771.88,0.00021917,2]
[356015424,1741798239130,-500.0,0.00021917,2]
[356015425,1741798239140,-500.0,0.00021917,2]
[356015426,1741798239149,-500.0,0.00021917,2]
[356015427,1741798239159,-500.0,0.00021917,2]
[356015428,1741798239167,-500.0,0.00021917,2]
[356015429,1741798239177,-500.0,0.00021917,2]
[356015430,1741798239186,-500.0,0.00021917,2]
[356015431,1741798239195,-500.0,0.00021917,2]
[356015432,1741798239205,-500.0,0.00021917,2]
[356015433,1741798239216,-500.0,0.00021917,2]
[356015434,1741798239225,-500.0,0.00021917,2]
[356015435,1741798239235,-500.0,0.00021917,2]
[356015436,1741798239245,-500.0,0.00021917,2]
[356015437,1741798239255,-500.0,0.00021917,2]
[356015438,1741798239265,-500.0,0.00021917,2]
[356015439,1741798239275,-544.78,0.00021917,2]
[356015440,1741798239283,-542.19946794,0.00021917,2]
[356015441,1741798239293,-500.0,0.00021917,2]
[356015442,1741798239302,-1029.51,0.00021917,2]
[356015443,1741798239312,-596.25,0.00021917,2]
[356015444,1741798239322,-500.0,0.00021917,2]
[356015445,1741798239333,-500.0,0.00021917,2]
[356015446,1741798239343,-500.0,0.00021917,2]
[356015447,1741798239356,-520.32,0.00021917,2]
[356015448,1741798239365,-500.0,0.00021917,2]
[356015449,1741798239374,-1164.14,0.00021917,2]
[356015450,1741798239384,-520.15,0.00021917,2]
[356015451,1741798239393,-558.1,0.00021917,2]
[356015452,1741798239402,-500.0,0.00021917,2]
[356015453,1741798239412,-500.0,0.00021917,2]
[356015454,1741798239422,-500.0,0.00021917,2]
[356015455,1741798239431,-500.0,0.00021917,2]
[356015456,1741798239441,-500.0,0.00021917,2]
[356015457,1741798239450,-500.0,0.00021917,2]
[356015458,1741798239459,-500.0,0.00021917,2]
[356015459,1741798239470,-500.0,0.00021917,2]
[356015460,1741798239479,-500.0,0.00021917,2]
[356015461,1741798239489,-754.05,0.00021917,2]
[356015462,1741798239498,-500.0,0.00021917,2]
[356015463,1741798239508,-500.0,0.00021917,2]
[356015464,1741798239517,-776.04,0.00021917,2]
[356015465,1741798239527,-5008.05,0.00021917,2]
[356015466,1741798239537,-1257.49,0.00021917,2]
[356015467,1741798239547,-500.0,0.00021917,2]
[356015468,1741798239556,-500.0,0.00021917,2]
[356015469,1741798239565,-836.67,0.00021917,2]
[356015470,1741798239575,-500.0,0.00021917,2]
[356015471,1741798239584,-672.79,0.00021917,2]
[356015472,1741798239594,-727.65,0.00021917,2]
[356015473,1741798239604,-500.0,0.00021917,2]
[356015475,1741798239619,-500.0,0.00021917,2]
[356015476,1741798239628,-548.16,0.00021917,2]
[356015477,1741798239638,-500.0,0.00021917,2]
[356015478,1741798239649,-1701.86,0.00021917,2]
[356015479,1741798239659,-1348.84,0.00021917,2]
[356015481,1741798239669,-500.0,0.00021917,2]
[356015483,1741798239679,-500.0,0.00021917,2]
[356015484,1741798239690,-570.34,0.00021917,2]
[356015485,1741798239699,-360.55628035,0.00021917,2]
[356015486,1741798239708,-500.0,0.00021917,2]
[356015487,1741798239718,-735.52,0.00021917,2]
[356015489,1741798239728,-500.0,0.00021917,2]
[356015491,1741798239737,-774.24,0.00021917,2]
[356015492,1741798239746,-694.54,0.00021917,2]
[356015493,1741798239755,-500.0,0.00021917,2]
[356015494,1741798239764,-500.0,0.00021917,2]
[356015495,1741798239774,-500.0,0.00021917,2]
[356015496,1741798239789,-500.0,0.00021917,2]
[356015497,1741798239799,-766.53,0.00021917,2]
[356015498,1741798239808,-500.0,0.00021917,2]
[356015499,1741798239818,-500.0,0.00021917,2]
[356015500,1741798239827,-635.46,0.00021917,2]
[356015502,1741798239838,-928.81,0.00021917,2]
[356015503,1741798239848,-3049.64,0.00021917,2]
[356015504,1741798239857,-500.0,0.00021917,2]
[356015505,1741798239867,-959.06,0.00021917,2]
[356015506,1741798239877,-1074.61,0.00021917,2]
[356015507,1741798239887,-756.75,0.00021917,2]
[356015509,1741798239897,-500.0,0.00021917,2]
[356015510,1741798239907,-500.0,0.00021917,2]
[356015511,1741798239916,-500.0,0.00021917,2]
[356015512,1741798239926,-500.0,0.00021917,2]
[356015513,1741798239936,-500.0,0.00021917,2]
[356015514,1741798239946,-500.0,0.00021917,2]
[356015515,1741798239956,-441.35416636,0.00021917,2]
[356015516,1741798239968,-1008.07,0.00021917,2]
[356015517,1741798239978,-500.0,0.00021917,2]
[356015518,1741798239988,-905.94,0.00021917,2]
[356015519,1741798239998,-686.48,0.00021917,2]
[356015520,1741798240007,-722.2,0.00021917,2]
[356015521,1741798240017,-22338.91,0.00021917,2]
[356015522,1741798240027,-1042.44,0.00021917,2]
[356015523,1741798240038,-500.0,0.00021917,2]
[356015524,1741798240048,-1021.33,0.00021917,2]
[356015525,1741798240057,-500.0,0.00021917,2]
[356015526,1741798240066,-500.0,0.00021917,2]
[356015527,1741798240076,-500.0,0.00021917,2]
[356015528,1741798240086,-850.76,0.00021917,2]
[356015529,1741798240095,-10076.76,0.00021917,2]
[356015530,1741798240104,-595.64,0.00021917,2]
[356015531,1741798240114,-971.04,0.00021917,2]
[356015532,1741798240124,-500.0,0.00021917,2]
[356015533,1741798240133,-530.92,0.00021917,2]
[356015534,1741798240142,-500.0,0.00021917,2]
[356015535,1741798240151,-609.77,0.00021917,2]
[356015536,1741798240161,-500.0,0.00021917,2]
[356015537,1741798240171,-501.7,0.00021917,2]
[356015538,1741798240180,-500.0,0.00021917,2]
[356015539,1741798240190,-500.0,0.00021917,2]
[356015540,1741798240199,-500.0,0.00021917,2]
[356015541,1741798240209,-500.0,0.00021917,2]
[356015542,1741798240220,-799.82,0.00021917,2]
[356015543,1741798240229,-2621.99,0.00021917,2]
[356015544,1741798240239,-500.0,0.00021917,2]
[356015545,1741798240249,-500.0,0.00021917,2]
[356015546,1741798240258,-500.0,0.00021917,2]
[356015547,1741798240268,-1977.98,0.00021917,2]
[356015548,1741798240277,-500.0,0.00021917,2]
[356015549,1741798240286,-1071.25,0.00021917,2]
[356015550,1741798240296,-1968.86,0.00021917,2]
[356015551,1741798240305,-1400.55,0.00021917,2]
[356015552,1741798240314,-500.0,0.00021917,2]
[356015553,1741798240324,-500.0,0.00021917,2]
[356015554,1741798240333,-588.68,0.00021917,2]
[356015555,1741798240342,-500.0,0.00021917,2]
[356015556,1741798240352,-500.0,0.00021917,2]
[356015557,1741798240361,-742.3,0.00021917,2]
[356015558,1741798240370,-1495.45,0.00021917,2]
[356015559,1741798240380,-1000.0,0.00021917,7]
[356015560,1741798240389,-500.0,0.00021917,2]
[356015561,1741798240398,-703.13,0.00021917,2]
[356015562,1741798240407,-739.13,0.00021917,2]
[356015563,1741798240416,-650.25,0.00021917,2]
[356015564,1741798240426,-533.88,0.00021917,2]
[356015565,1741798240436,-815.04,0.00021917,2]
[356015566,1741798240445,-500.0,0.00021917,2]
[356015567,1741798240455,-500.0,0.00021917,2]
[356015568,1741798240464,-1525.43,0.00021917,2]
[356015569,1741798240476,-500.0,0.00021917,2]
[356015570,1741798240486,-979.09,0.00021917,2]
[356015571,1741798240495,-500.0,0.00021917,2]
[356015572,1741798240505,-552.54,0.00021917,2]
[356015573,1741798240514,-500.0,0.00021917,2]
[356015574,1741798240523,-500.0,0.00021917,2]
[356015575,1741798240533,-500.0,0.00021917,2]
[356015576,1741798240542,-500.0,0.00021917,2]
[356015577,1741798240552,-914.05,0.00021917,2]
[356015578,1741798240561,-500.0,0.00021917,2]
[356015579,1741798240570,-500.0,0.00021917,2]
[356015580,1741798240580,-781.22,0.00021917,2]
[356015581,1741798240589,-727.6,0.00021917,2]
[356015582,1741798240598,-500.0,0.00021917,2]
[356015583,1741798240607,-500.0,0.00021917,2]
[356015584,1741798240617,-647.65,0.00021917,2]
[356015585,1741798240626,-503.08150973,0.00021917,2]
[356015586,1741798240635,-2432.41,0.00021917,2]
[356015587,1741798240645,-500.0,0.00021917,2]
[356015588,1741798240657,-1899.84,0.00021917,2]
[356015589,1741798240667,-500.0,0.00021917,2]
[356015590,1741798240676,-1658.0,0.00021917,2]
[356015591,1741798240686,-709.23,0.00021917,2]
[356015592,1741798240695,-500.0,0.00021917,2]
[356015593,1741798240705,-500.0,0.00021917,2]
[356015594,1741798240714,-500.0,0.00021917,2]
[356015595,1741798240726,-551.70656323,0.00021973,2]
[356015596,1741798240736,-500.0,0.00021973,2]
[356015597,1741798240746,-500.0,0.00021973,2]
[356015598,1741798240755,-500.0,0.00021973,2]
[356015599,1741798240765,-500.0,0.00021973,2]
[356015600,1741798240775,-500.0,0.00021973,2]
[356015601,1741798240785,-509.35314078,0.00021973,2]
[356015602,1741798240795,-500.0,0.00021973,2]
[356015603,1741798240805,-500.0,0.00021973,2]
[356015604,1741798240815,-500.0,0.00021973,2]
[356015605,1741798240825,-500.0,0.00021973,2]
[356015606,1741798240835,-500.0,0.00021973,2]
[356015607,1741798240847,-500.0,0.00021973,2]
[356015608,1741798240857,-500.0,0.00021973,2]
[356015609,1741798240868,-500.0,0.00021973,2]
[356015610,1741798240877,-500.0,0.00021973,2]
[356015611,1741798240887,-500.0,0.00021973,2]
[356015612,1741798240897,-500.0,0.00021973,2]
[356015613,1741798240908,-500.0,0.00021973,2]
[356015614,1741798240918,-500.0,0.00021973,2]
[356015615,1741798240928,-500.0,0.00021973,2]
[356015616,1741798240938,-500.0,0.00021973,2]
[356015617,1741798240948,-500.0,0.00021973,2]
[356015618,1741798240958,-190.53157683,0.00021973,2]
[356015619,1741798240970,-500.0,0.00021973,2]
[356015620,1741798240980,-500.0,0.00021973,2]
[356015621,1741798240990,-11390.78676684,0.00022,8]
[356015622,1741798241000,-500.0,0.00022073,2]
[356015623,1741798241011,-277.43519169,0.00022073,2]
[356015624,1741798241020,-500.0,0.00022073,2]
[356015625,1741798241031,-500.0,0.00022073,2]
[356015626,1741798241040,-500.0,0.00022073,2]
[356015627,1741798241050,-500.0,0.00022073,2]
[356015628,1741798241061,-500.0,0.00022073,2]
[356015629,1741798241071,-500.0,0.00022073,2]
[356015630,1741798241082,-500.0,0.00022073,2]
[356015631,1741798241091,-500.0,0.00022073,2]
[356015632,1741798241101,-500.0,0.00022073,2]
[356015633,1741798241111,-500.0,0.00022073,2]
[356015634,1741798241122,-3000.0,0.00022091,2]
[356015635,1741798241131,-122803.61513955,0.00022091,2]
[356015707,1741799438118,-315.0,0.000179,7]
[356015708,1741799438128,-1482.06,0.00018,2]
[356015709,1741799438138,-315.0,0.000194,8]
[356015710,1741799438148,-315.0,0.000209,9]
[356015711,1741799438157,-150.0,0.00021,2]
[356015712,1741799438167,-208.47008217,0.00021475,2]
[356015713,1741799438177,-155.52274925,0.00021665,5]
[356015714,1741799438186,-739.24111277,0.00021805,2]
[356015715,1741799438196,-421.5,0.00021813,15]
[356015716,1741799438206,-195.78581892,0.00021817,2]
[356015717,1741799438216,-3921.38724462,0.00021833,2]
[356015718,1741799438225,-300.0,0.00021899,2]
[356015719,1741799438235,-1545.0,0.000219,2]
[356015720,1741799438246,-1020.48699633,0.000219,3]
[356015721,1741799438255,-456.32287828,0.00021916,2]
[356015722,1741799438266,-458.92721193,0.00021916,2]
[356015723,1741799438276,-152.0,0.00021916,2]
[356015724,1741799438287,-500.0,0.00021917,2]
[356015725,1741799438298,-272.68533915,0.00021917,2]
[356015726,1741799438311,-227.31466085,0.00021917,2]
[356015727,1741799438320,-500.0,0.00021917,2]
[356015728,1741799438331,-500.0,0.00021917,2]
[356015729,1741799438340,-500.0,0.00021917,2]
[356015730,1741799438350,-500.0,0.00021917,2]
[356015731,1741799438360,-500.0,0.00021917,2]
[356015732,1741799438370,-500.0,0.00021917,2]
[356015733,1741799438380,-500.0,0.00021917,2]
[356015734,1741799438390,-500.0,0.00021917,2]
[356015735,1741799438399,-500.0,0.00021917,2]
[356015736,1741799438409,-500.0,0.00021917,2]
[356015737,1741799438419,-500.0,0.00021917,2]
[356015738,1741799438430,-500.0,0.00021917,2]
[356015739,1741799438439,-133.23248604,0.00021917,2]
[356015740,1741799438452,-366.76751396,0.00021917,2]
[356015741,1741799438462,-133.23248604,0.00021917,2]
[356015742,1741799438473,-279.00426295,0.00021917,2]
[356015743,1741799438485,-87.76325101,0.00021917,2]
[356015744,1741799438495,-507.22079793,0.00021917,2]
[356015745,1741799438507,-73.98860451,0.00021917,2]
[356015746,1741799438516,-500.0,0.00021917,2]
[356015747,1741799438526,-289.24879037,0.00021917,2]
[356015748,1741799438538,-210.75120963,0.00021917,2]
[356015749,1741799438548,-500.0,0.00021917,2]
[356015750,1741799438558,-500.0,0.00021917,2]
[356015751,1741799438568,-500.00687318,0.00021917,2]
[356015752,1741799438578,-108.69502243,0.00021917,2]
[356015753,1741799438591,-391.30497757,0.00021917,2]
[356015754,1741799438601,-483.68,0.00021917,2]
[356015755,1741799438611,-500.0,0.00021917,2]
[356015756,1741799438621,-500.0,0.00021917,2]
[356015757,1741799438631,-500.0,0.00021917,2]
[356015758,1741799438641,-500.0,0.00021917,2]
[356015759,1741799438650,-1774.4,0.00021917,2]
[356015760,1741799438661,-500.0,0.00021917,2]
[356015761,1741799438670,-500.0,0.00021917,2]
[356015762,1741799438680,-500.0,0.00021917,2]
[356015763,1741799438690,-500.0,0.00021917,2]
[356015764,1741799438699,-500.0,0.00021917,2]
[356015765,1741799438709,-500.0,0.00021917,2]
[356015766,1741799438719,-500.0,0.00021917,2]
[356015767,1741799438729,-500.0,0.00021917,2]
[356015768,1741799438739,-500.0,0.00021917,2]
[356015769,1741799438749,-500.0,0.00021917,2]
[356015770,1741799438758,-500.0,0.00021917,2]
[356015771,1741799438768,-500.0,0.00021917,2]
[356015772,1741799438778,-500.0,0.00021917,2]
[356015773,1741799438788,-576.13,0.00021917,2]
[356015774,1741799438799,-500.0,0.00021917,2]
[356015775,1741799438809,-500.0,0.00021917,2]
[356015776,1741799438819,-499.08584756,0.00021917,2]
[356015777,1741799438828,-500.0,0.00021917,2]
[356015778,1741799438838,-417.36339775,0.00021917,2]
[356015779,1741799438848,-500.0,0.00021917,2]
[356015780,1741799438859,-500.0,0.00021917,2]
[356015781,1741799438869,-500.0,0.00021917,2]
[356015782,1741799438878,-500.0,0.00021917,2]
[356015783,1741799438888,-500.0,0.00021917,2]
[356015784,1741799438898,-500.0,0.00021917,2]
[356015785,1741799438908,-520.0,0.00021917,2]
[356015786,1741799438917,-290.5669836,0.00021917,2]
[356015787,1741799438927,-1146.89,0.00021917,2]
[356015788,1741799438937,-762.92,0.00021917,2]
[356015789,1741799438947,-802.04,0.00021917,2]
[356015790,1741799438957,-500.0,0.00021917,2]
[356015791,1741799438967,-712.1,0.00021917,2]
[356015792,1741799438977,-500.0,0.00021917,2]
[356015793,1741799438986,-500.0,0.00021917,2]
[356015794,1741799438996,-500.0,0.00021917,2]
[356015795,1741799439008,-1441.4,0.00021917,2]
[356015796,1741799439019,-500.0,0.00021917,2]
[356015797,1741799439029,-500.0,0.00021917,2]
[356015798,1741799439038,-500.0,0.00021917,2]
[356015799,1741799439049,-752.24,0.00021917,2]
[356015800,1741799439058,-500.0,0.00021917,2]
[356015801,1741799439068,-500.0,0.00021917,2]
[356015802,1741799439077,-500.0,0.00021917,2]
[356015803,1741799439087,-500.0,0.00021917,2]
[356015804,1741799439096,-500.0,0.00021917,2]